[Event "Titled Tuesday Blitz July 05 Early 2022"]
[White "Rostovtsev, Dmitry"]
[Black "Kamsky, Gata"]
[WhiteFideId "34278320"]
[BlackFideId "2000024"]
[WhiteElo "2232"]
[BlackElo "2645"]
[Result "1-0"]
[Round "11"]
[TimeControl "180+1"]
[Date "2022.07.05"]
[WhiteClock "0:00:05"]
[BlackClock "0:00:04"]

1. e4 {[%clk 0:03:00]}  e5 {[%clk 0:02:43]} 2. Nf3 {[%clk 0:03:01]}  Nc6 {[%clk 0:02:42]} 3. Bb5 {[%clk 0:03:01]}  Nf6 {[%clk 0:02:41]} 4. O-O {[%clk 0:02:54]}  Nxe4 {[%clk 0:02:40]} 5. d4 {[%clk 0:02:51]}  Nd6 {[%clk 0:02:40]} 6. dxe5 {[%clk 0:02:52]}  Nxb5 {[%clk 0:02:39]} 7. a4 {[%clk 0:02:52]}  d6 {[%clk 0:02:33]} 8. e6 {[%clk 0:02:50]}  Bxe6 {[%clk 0:02:29]} 9. axb5 {[%clk 0:02:49]}  Ne5 {[%clk 0:02:29]} 10. Nd4 {[%clk 0:02:45]}  Bg4 {[%clk 0:02:01]} 11. Qe1 {[%clk 0:02:32]}  Be7 {[%clk 0:02:00]} 12. h3 {[%clk 0:02:27]}  Bd7 {[%clk 0:01:59]} 13. f4 {[%clk 0:02:26]}  Ng6 {[%clk 0:01:58]} 14. Qg3 {[%clk 0:01:53]}  O-O {[%clk 0:01:54]} 15. f5 {[%clk 0:01:52]}  Ne5 {[%clk 0:01:50]} 16. Nc3 {[%clk 0:01:52]}  Bh4 {[%clk 0:01:44]} 17. Qf4 {[%clk 0:01:50]}  c5 {[%clk 0:01:41]} 18. bxc6 {[%clk 0:01:43]}  Bxc6 {[%clk 0:01:39]} 19. f6 {[%clk 0:01:34]}  Bxf6 {[%clk 0:01:38]} 20. Nf5 {[%clk 0:01:33]}  Kh8 {[%clk 0:01:29]} 21. Ne4 {[%clk 0:01:26]}  Bxe4 {[%clk 0:01:27]} 22. Qxe4 {[%clk 0:01:27]}  d5 {[%clk 0:01:26]} 23. Qf4 {[%clk 0:01:22]}  Re8 {[%clk 0:01:20]} 24. Qg3 {[%clk 0:01:22]}  d4 {[%clk 0:01:11]} 25. Bf4 {[%clk 0:01:19]}  Rc8 {[%clk 0:01:10]} 26. Rf2 {[%clk 0:01:06]}  d3 {[%clk 0:01:09]} 27. cxd3 {[%clk 0:01:03]}  Nxd3 {[%clk 0:01:07]} 28. Rd1 {[%clk 0:00:51]}  Re1+ {[%clk 0:00:31]} 29. Rxe1 {[%clk 0:00:36]}  Nxe1 {[%clk 0:00:31]} 30. Nd6 {[%clk 0:00:36]}  Rc7 {[%clk 0:00:19]} 31. Re2 {[%clk 0:00:31]}  Re7 {[%clk 0:00:19]} 32. Rxe1 {[%clk 0:00:29]}  Rxe1+ {[%clk 0:00:18]} 33. Qxe1 {[%clk 0:00:30]}  Kg8 {[%clk 0:00:18]} 34. b4 {[%clk 0:00:20]}  b6 {[%clk 0:00:18]} 35. b5 {[%clk 0:00:19]}  h5 {[%clk 0:00:17]} 36. Qe8+ {[%clk 0:00:18]}  Qxe8 {[%clk 0:00:16]} 37. Nxe8 {[%clk 0:00:19]}  Be7 {[%clk 0:00:16]} 38. Bb8 {[%clk 0:00:14]}  f6 {[%clk 0:00:14]} 39. Bxa7 {[%clk 0:00:11]}  Kf7 {[%clk 0:00:14]} 40. Nc7 {[%clk 0:00:10]}  Bc5+ {[%clk 0:00:14]} 41. Kf1 {[%clk 0:00:09]}  Ke7 {[%clk 0:00:12]} 42. Bb8 {[%clk 0:00:09]}  Kd7 {[%clk 0:00:12]} 43. Na6 {[%clk 0:00:09]}  Bd4 {[%clk 0:00:12]} 44. Ke2 {[%clk 0:00:09]}  Ke6 {[%clk 0:00:11]} 45. Kd3 {[%clk 0:00:09]}  Bg1 {[%clk 0:00:11]} 46. Kc4 {[%clk 0:00:08]}  g5 {[%clk 0:00:10]} 47. Nb4 {[%clk 0:00:08]}  f5 {[%clk 0:00:10]} 48. Nd5 {[%clk 0:00:08]}  f4 {[%clk 0:00:10]} 49. Bc7 {[%clk 0:00:07]}  Kd7 {[%clk 0:00:09]} 50. Bxb6 {[%clk 0:00:07]}  Bh2 {[%clk 0:00:10]} 51. Bc7 {[%clk 0:00:04]}  g4 {[%clk 0:00:06]} 52. hxg4 {[%clk 0:00:03]}  hxg4 {[%clk 0:00:06]} 53. Bxf4 {[%clk 0:00:03]}  Bg1 {[%clk 0:00:06]} 54. g3 {[%clk 0:00:03]}  Kc8 {[%clk 0:00:05]} 55. Ne3 {[%clk 0:00:04]}  Kd7 {[%clk 0:00:05]} 56. Nxg4 {[%clk 0:00:04]}  Ke6 {[%clk 0:00:05]} 57. Ne3 {[%clk 0:00:04]}  Kd7 {[%clk 0:00:05]} 58. Nd5 {[%clk 0:00:05]}  Bh2 {[%clk 0:00:04]} 59. g4 {[%clk 0:00:05]}  Bg1 {[%clk 0:00:04]} 60. g5 {[%clk 0:00:05]}  Ke6 {[%clk 0:00:04]} 61. g6 {[%clk 0:00:06]}  Bf2 {[%clk 0:00:04]} 62. g7 {[%clk 0:00:04]}  Kf7 {[%clk 0:00:04]} 63. Be5 {[%clk 0:00:05]}  Bh4 {[%clk 0:00:04]} 64. b6 {[%clk 0:00:05]} 1-0


[Site "https://www.chess.com"]

[Event "Titled Tuesday Blitz July 05 Early 2022"]
[White "Sadykov, Ramil"]
[Black "Yaksin, Oleg"]
[WhiteFideId "24113590"]
[BlackFideId "24105880"]
[WhiteElo "2226"]
[BlackElo "2256"]
[Result "1-0"]
[Round "11"]
[TimeControl "180+1"]
[Date "2022.07.05"]
[WhiteClock "0:00:01"]
[BlackClock "0:00:03"]

1. e4 {[%clk 0:03:00]}  c5 {[%clk 0:02:57]} 2. Nc3 {[%clk 0:02:53]}  Nc6 {[%clk 0:02:56]} 3. g3 {[%clk 0:02:53]}  g6 {[%clk 0:02:56]} 4. Bg2 {[%clk 0:02:54]}  Bg7 {[%clk 0:02:56]} 5. d3 {[%clk 0:02:54]}  d6 {[%clk 0:02:57]} 6. Be3 {[%clk 0:02:55]}  Nf6 {[%clk 0:02:57]} 7. h3 {[%clk 0:02:53]}  Rb8 {[%clk 0:02:57]} 8. Qd2 {[%clk 0:02:52]}  h5 {[%clk 0:02:57]} 9. Nge2 {[%clk 0:02:51]}  b5 {[%clk 0:02:56]} 10. a3 {[%clk 0:02:51]}  a5 {[%clk 0:02:56]} 11. a4 {[%clk 0:02:43]}  b4 {[%clk 0:02:50]} 12. Nb5 {[%clk 0:02:43]}  Ba6 {[%clk 0:02:45]} 13. c4 {[%clk 0:02:43]}  bxc3 {[%clk 0:02:44]} 14. bxc3 {[%clk 0:02:42]}  Bxb5 {[%clk 0:02:44]} 15. axb5 {[%clk 0:02:43]}  Rxb5 {[%clk 0:02:45]} 16. O-O {[%clk 0:02:42]}  O-O {[%clk 0:02:44]} 17. d4 {[%clk 0:02:38]}  cxd4 {[%clk 0:02:40]} 18. cxd4 {[%clk 0:02:39]}  Nb4 {[%clk 0:02:39]} 19. Nc3 {[%clk 0:02:32]}  Rb8 {[%clk 0:02:32]} 20. f4 {[%clk 0:02:30]}  e6 {[%clk 0:02:08]} 21. f5 {[%clk 0:02:21]}  exf5 {[%clk 0:01:53]} 22. exf5 {[%clk 0:02:22]}  Qd7 {[%clk 0:01:41]} 23. Rxa5 {[%clk 0:02:14]}  Rbe8 {[%clk 0:01:39]} 24. Bh6 {[%clk 0:02:10]}  Nc6 {[%clk 0:01:28]} 25. Bxg7 {[%clk 0:01:36]}  Kxg7 {[%clk 0:01:22]} 26. Ra6 {[%clk 0:01:36]}  d5 {[%clk 0:01:19]} 27. Qg5 {[%clk 0:01:29]}  Rc8 {[%clk 0:00:54]} 28. g4 {[%clk 0:01:22]}  hxg4 {[%clk 0:00:52]} 29. hxg4 {[%clk 0:01:23]}  Qd6 {[%clk 0:00:37]} 30. Nxd5 {[%clk 0:00:43]}  Nxd5 {[%clk 0:00:26]} 31. Bxd5 {[%clk 0:00:43]}  Rh8 {[%clk 0:00:09]} 32. f6+ {[%clk 0:00:41]}  Kf8 {[%clk 0:00:09]} 33. Bg2 {[%clk 0:00:11]}  Qxd4+ {[%clk 0:00:09]} 34. Rf2 {[%clk 0:00:09]}  Ne5 {[%clk 0:00:10]} 35. Qf4 {[%clk 0:00:07]}  Qxf4 {[%clk 0:00:04]} 36. Rxf4 {[%clk 0:00:07]}  g5 {[%clk 0:00:04]} 37. Rf5 {[%clk 0:00:07]}  Nxg4 {[%clk 0:00:04]} 38. Rxg5 {[%clk 0:00:05]}  Ne3 {[%clk 0:00:04]} 39. Be4 {[%clk 0:00:05]}  Re8 {[%clk 0:00:03]} 40. Bc6 {[%clk 0:00:03]}  Rd8 {[%clk 0:00:03]} 41. Kf2 {[%clk 0:00:03]}  Nc4 {[%clk 0:00:03]} 42. Rd5 {[%clk 0:00:01]} 1-0


[Site "https://www.chess.com"]

[Event "Titled Tuesday Blitz July 05 Early 2022"]
[White "Severino, Sander"]
[Black "Lashkin, Jegor"]
[WhiteFideId "5204100"]
[BlackFideId "13907808"]
[WhiteElo "2408"]
[BlackElo "2368"]
[Result "0-1"]
[Round "11"]
[TimeControl "180+1"]
[Date "2022.07.05"]
[WhiteClock "0:00:12"]
[BlackClock "0:00:05"]

1. d4 {[%clk 0:03:00]}  Nf6 {[%clk 0:02:59]} 2. Nf3 {[%clk 0:03:00]}  d5 {[%clk 0:02:59]} 3. Bf4 {[%clk 0:03:00]}  e6 {[%clk 0:02:59]} 4. e3 {[%clk 0:03:00]}  Bd6 {[%clk 0:03:00]} 5. Bg3 {[%clk 0:02:59]}  O-O {[%clk 0:03:00]} 6. Nbd2 {[%clk 0:02:59]}  c5 {[%clk 0:03:00]} 7. c3 {[%clk 0:02:59]}  b6 {[%clk 0:02:59]} 8. Bd3 {[%clk 0:02:59]}  Ba6 {[%clk 0:02:59]} 9. Bxa6 {[%clk 0:02:56]}  Nxa6 {[%clk 0:03:00]} 10. Qe2 {[%clk 0:02:56]}  Nc7 {[%clk 0:02:59]} 11. O-O {[%clk 0:02:56]}  Bxg3 {[%clk 0:02:58]} 12. hxg3 {[%clk 0:02:56]}  Qe7 {[%clk 0:02:53]} 13. a4 {[%clk 0:02:54]}  Rac8 {[%clk 0:02:42]} 14. a5 {[%clk 0:02:52]}  b5 {[%clk 0:02:34]} 15. Nb3 {[%clk 0:02:43]}  Ne4 {[%clk 0:02:33]} 16. Nfd2 {[%clk 0:02:41]}  Nxd2 {[%clk 0:02:30]} 17. Qxd2 {[%clk 0:02:41]}  Na6 {[%clk 0:02:29]} 18. dxc5 {[%clk 0:02:38]}  Nxc5 {[%clk 0:02:30]} 19. Nxc5 {[%clk 0:02:38]}  Rxc5 {[%clk 0:02:30]} 20. Rfe1 {[%clk 0:02:32]}  Rc4 {[%clk 0:02:25]} 21. b3 {[%clk 0:02:25]}  Rc6 {[%clk 0:02:23]} 22. e4 {[%clk 0:02:24]}  dxe4 {[%clk 0:02:23]} 23. Rxe4 {[%clk 0:02:25]}  Rfc8 {[%clk 0:02:24]} 24. Re3 {[%clk 0:02:22]}  Qc7 {[%clk 0:02:17]} 25. Rd3 {[%clk 0:02:06]}  Rxc3 {[%clk 0:02:00]} 26. Rd7 {[%clk 0:02:01]}  Qc5 {[%clk 0:01:44]} 27. Rd1 {[%clk 0:01:54]}  h6 {[%clk 0:01:30]} 28. Qf4 {[%clk 0:01:51]}  Rf8 {[%clk 0:01:20]} 29. b4 {[%clk 0:01:46]}  Qh5 {[%clk 0:01:03]} 30. g4 {[%clk 0:01:42]}  Qg6 {[%clk 0:01:01]} 31. Rxa7 {[%clk 0:01:34]}  Rc4 {[%clk 0:01:01]} 32. Qd6 {[%clk 0:01:34]}  Qxg4 {[%clk 0:00:51]} 33. Qxf8+ {[%clk 0:01:33]}  Kh7 {[%clk 0:00:46]} 34. Qd6 {[%clk 0:01:16]}  Qg6 {[%clk 0:00:26]} 35. Rc7 {[%clk 0:00:55]}  Rg4 {[%clk 0:00:25]} 36. g3 {[%clk 0:00:52]}  h5 {[%clk 0:00:20]} 37. Qd3 {[%clk 0:00:38]}  f5 {[%clk 0:00:18]} 38. Kg2 {[%clk 0:00:27]}  e5 {[%clk 0:00:10]} 39. Qxb5 {[%clk 0:00:17]}  f4 {[%clk 0:00:06]} 40. Rdd7 {[%clk 0:00:14]}  f3+ {[%clk 0:00:05]} 41. Kh2 {[%clk 0:00:13]}  Rh4+ {[%clk 0:00:05]} 42. Kg1 {[%clk 0:00:12]}  Qb1+ {[%clk 0:00:05]} 0-1


[Site "https://www.chess.com"]

[Event "Titled Tuesday Blitz July 05 Early 2022"]
[White "Shimanov, Aleksandr"]
[Black "Tristan, Leonardo"]
[WhiteFideId "4198603"]
[BlackFideId "113816"]
[WhiteElo "2605"]
[BlackElo "2404"]
[Result "0-1"]
[Round "11"]
[TimeControl "180+1"]
[Date "2022.07.05"]
[WhiteClock "0:00:44"]
[BlackClock "0:00:48"]

1. e4 {[%clk 0:02:20]}  d5 {[%clk 0:02:58]} 2. Nc3 {[%clk 0:02:16]}  dxe4 {[%clk 0:02:52]} 3. Nxe4 {[%clk 0:02:15]}  Bf5 {[%clk 0:02:53]} 4. Ng3 {[%clk 0:02:14]}  Bg6 {[%clk 0:02:52]} 5. Nf3 {[%clk 0:02:13]}  Nd7 {[%clk 0:02:52]} 6. d4 {[%clk 0:02:11]}  e6 {[%clk 0:02:52]} 7. h4 {[%clk 0:02:10]}  h6 {[%clk 0:02:52]} 8. h5 {[%clk 0:02:05]}  Bh7 {[%clk 0:02:53]} 9. Bd3 {[%clk 0:02:04]}  Bxd3 {[%clk 0:02:52]} 10. Qxd3 {[%clk 0:02:05]}  Ngf6 {[%clk 0:02:53]} 11. Bf4 {[%clk 0:02:04]}  Bd6 {[%clk 0:02:48]} 12. Bxd6 {[%clk 0:01:55]}  cxd6 {[%clk 0:02:49]} 13. O-O-O {[%clk 0:01:54]}  Qa5 {[%clk 0:02:46]} 14. Kb1 {[%clk 0:01:53]}  d5 {[%clk 0:02:40]} 15. Nf1 {[%clk 0:01:47]}  O-O-O {[%clk 0:02:39]} 16. N3d2 {[%clk 0:01:44]}  Kb8 {[%clk 0:02:39]} 17. Ne3 {[%clk 0:01:44]}  Rc8 {[%clk 0:02:39]} 18. g4 {[%clk 0:01:41]}  Ne8 {[%clk 0:02:25]} 19. f4 {[%clk 0:01:38]}  Nd6 {[%clk 0:02:24]} 20. g5 {[%clk 0:01:38]}  Qc7 {[%clk 0:02:16]} 21. Rdf1 {[%clk 0:01:26]}  Nb6 {[%clk 0:02:10]} 22. c3 {[%clk 0:01:23]}  Na4 {[%clk 0:02:04]} 23. Ka1 {[%clk 0:01:21]}  Qb6 {[%clk 0:02:02]} 24. Rb1 {[%clk 0:01:21]}  Qa5 {[%clk 0:01:49]} 25. gxh6 {[%clk 0:01:09]}  Rxh6 {[%clk 0:01:40]} 26. Ng4 {[%clk 0:01:06]}  Rhh8 {[%clk 0:01:38]} 27. Ne5 {[%clk 0:01:07]}  f6 {[%clk 0:01:27]} 28. Nd7+ {[%clk 0:01:04]}  Ka8 {[%clk 0:01:28]} 29. Nb3 {[%clk 0:01:00]}  Qc7 {[%clk 0:01:06]} 30. Ndc5 {[%clk 0:01:00]}  Nxc5 {[%clk 0:01:05]} 31. Nxc5 {[%clk 0:01:01]}  Nc4 {[%clk 0:00:55]} 32. Nxe6 {[%clk 0:00:57]}  Qf7 {[%clk 0:00:55]} 33. f5 {[%clk 0:00:56]}  Rxh5 {[%clk 0:00:51]} 34. Rxh5 {[%clk 0:00:55]}  Qxh5 {[%clk 0:00:52]} 35. Nxg7 {[%clk 0:00:55]}  Qh2 {[%clk 0:00:51]} 36. Ne6 {[%clk 0:00:54]}  Rg8 {[%clk 0:00:50]} 37. Qf3 {[%clk 0:00:44]}  Rg1 {[%clk 0:00:48]} 0-1


[Site "https://www.chess.com"]

[Event "Titled Tuesday Blitz July 05 Early 2022"]
[White "Tan, Jun Ying"]
[Black "Hansen, Sune Berg"]
[WhiteFideId "5710413"]
[BlackFideId "1400266"]
[WhiteElo "1827"]
[BlackElo "2665"]
[Result "0-1"]
[Round "11"]
[TimeControl "180+1"]
[Date "2022.07.05"]
[WhiteClock "0:00:06"]
[BlackClock "0:00:20"]

1. d4 {[%clk 0:03:00]}  Nf6 {[%clk 0:02:59]} 2. c4 {[%clk 0:03:01]}  g6 {[%clk 0:02:59]} 3. Nc3 {[%clk 0:03:02]}  Bg7 {[%clk 0:02:59]} 4. e4 {[%clk 0:03:02]}  d6 {[%clk 0:03:00]} 5. Nf3 {[%clk 0:03:03]}  Nbd7 {[%clk 0:03:00]} 6. Be2 {[%clk 0:03:03]}  e5 {[%clk 0:03:00]} 7. O-O {[%clk 0:03:04]}  O-O {[%clk 0:03:00]} 8. Be3 {[%clk 0:03:04]}  Re8 {[%clk 0:02:59]} 9. d5 {[%clk 0:03:03]}  Nh5 {[%clk 0:02:59]} 10. g3 {[%clk 0:03:03]}  Bf8 {[%clk 0:02:58]} 11. Ne1 {[%clk 0:02:59]}  Ng7 {[%clk 0:02:58]} 12. Nd3 {[%clk 0:02:59]}  Be7 {[%clk 0:02:56]} 13. Qd2 {[%clk 0:02:58]}  f5 {[%clk 0:02:56]} 14. f3 {[%clk 0:02:58]}  Rf8 {[%clk 0:02:54]} 15. Kh1 {[%clk 0:02:54]}  Nf6 {[%clk 0:02:52]} 16. Rac1 {[%clk 0:02:52]}  a6 {[%clk 0:02:34]} 17. c5 {[%clk 0:02:48]}  fxe4 {[%clk 0:02:33]} 18. fxe4 {[%clk 0:02:42]}  Bh3 {[%clk 0:02:32]} 19. Rf2 {[%clk 0:02:37]}  Ng4 {[%clk 0:02:27]} 20. Bxg4 {[%clk 0:02:37]}  Bxg4 {[%clk 0:02:26]} 21. Rcf1 {[%clk 0:02:35]}  Rxf2 {[%clk 0:02:16]} 22. Qxf2 {[%clk 0:02:32]}  Qe8 {[%clk 0:02:10]} 23. cxd6 {[%clk 0:02:20]}  cxd6 {[%clk 0:02:08]} 24. Bh6 {[%clk 0:02:11]}  Nh5 {[%clk 0:01:56]} 25. Qe3 {[%clk 0:02:08]}  Qd8 {[%clk 0:01:44]} 26. Nf2 {[%clk 0:02:00]}  Bd7 {[%clk 0:01:41]} 27. Nd3 {[%clk 0:01:59]}  Nf6 {[%clk 0:01:37]} 28. Qg1 {[%clk 0:01:42]}  Bh3 {[%clk 0:01:26]} 29. Re1 {[%clk 0:01:39]}  Ng4 {[%clk 0:01:24]} 30. Nf2 {[%clk 0:01:33]}  Nxh6 {[%clk 0:01:18]} 31. Nxh3 {[%clk 0:01:33]}  Qd7 {[%clk 0:01:18]} 32. Nf2 {[%clk 0:01:30]}  Rf8 {[%clk 0:01:18]} 33. Nd3 {[%clk 0:01:27]}  Qh3 {[%clk 0:01:14]} 34. Qg2 {[%clk 0:01:25]}  Qh5 {[%clk 0:01:09]} 35. Rf1 {[%clk 0:01:18]}  Rxf1+ {[%clk 0:01:05]} 36. Qxf1 {[%clk 0:01:19]}  Ng4 {[%clk 0:01:05]} 37. Qe2 {[%clk 0:01:14]}  Bg5 {[%clk 0:00:57]} 38. a3 {[%clk 0:00:45]}  Be3 {[%clk 0:00:47]} 39. Qg2 {[%clk 0:00:36]}  Bd4 {[%clk 0:00:44]} 40. h3 {[%clk 0:00:17]}  Ne3 {[%clk 0:00:42]} 41. g4 {[%clk 0:00:18]}  Qh4 {[%clk 0:00:42]} 42. Qf3 {[%clk 0:00:17]}  Nc4 {[%clk 0:00:33]} 43. Ne2 {[%clk 0:00:14]}  Bxb2 {[%clk 0:00:29]} 44. Nxb2 {[%clk 0:00:13]}  Qe1+ {[%clk 0:00:28]} 45. Kg2 {[%clk 0:00:12]}  Nxb2 {[%clk 0:00:28]} 46. Ng3 {[%clk 0:00:07]}  Qd2+ {[%clk 0:00:27]} 47. Kf1 {[%clk 0:00:07]}  Nd3 {[%clk 0:00:26]} 48. Qf6 {[%clk 0:00:05]}  Qf4+ {[%clk 0:00:26]} 49. Qxf4 {[%clk 0:00:05]}  Nxf4 {[%clk 0:00:27]} 50. h4 {[%clk 0:00:04]}  Kf7 {[%clk 0:00:25]} 51. g5 {[%clk 0:00:04]}  Ke7 {[%clk 0:00:23]} 52. Kf2 {[%clk 0:00:04]}  b5 {[%clk 0:00:22]} 53. Nf1 {[%clk 0:00:03]}  a5 {[%clk 0:00:20]} 54. Nd2 {[%clk 0:00:04]}  Kd7 {[%clk 0:00:20]} 55. Nb3 {[%clk 0:00:03]}  a4 {[%clk 0:00:20]} 56. Na5 {[%clk 0:00:03]}  Kc7 {[%clk 0:00:20]} 57. Nc6 {[%clk 0:00:03]}  Kb6 {[%clk 0:00:21]} 58. Nb4 {[%clk 0:00:03]}  Kc5 {[%clk 0:00:21]} 59. Kg3 {[%clk 0:00:02]}  Kc4 {[%clk 0:00:21]} 60. Na6 {[%clk 0:00:01]}  Nd3 {[%clk 0:00:20]} 61. Nc7 {[%clk 0:00:02]}  b4 {[%clk 0:00:20]} 62. axb4 {[%clk 0:00:01]}  a3 {[%clk 0:00:20]} 63. b5 {[%clk 0:00:01]}  Kc5 {[%clk 0:00:21]} 64. b6 {[%clk 0:00:02]}  Kxb6 {[%clk 0:00:20]} 65. Ne6 {[%clk 0:00:03]}  a2 {[%clk 0:00:19]} 66. Kg4 {[%clk 0:00:04]}  a1=Q {[%clk 0:00:19]} 67. h5 {[%clk 0:00:05]}  Qg1+ {[%clk 0:00:19]} 68. Kh3 {[%clk 0:00:05]}  Nf2+ {[%clk 0:00:19]} 69. Kh4 {[%clk 0:00:06]}  Qg4# {[%clk 0:00:20]} 0-1


[Site "https://www.chess.com"]

[Event "Titled Tuesday Blitz July 05 Early 2022"]
[White "Terry, Renato"]
[Black "Csonka, Balazs"]
[WhiteFideId "3803457"]
[BlackFideId "742910"]
[WhiteElo "2577"]
[BlackElo "2404"]
[Result "1/2-1/2"]
[Round "11"]
[TimeControl "180+1"]
[Date "2022.07.05"]
[WhiteClock "0:00:06"]
[BlackClock "0:00:03"]

1. e4 {[%clk 0:02:59]}  c5 {[%clk 0:02:57]} 2. Nf3 {[%clk 0:02:59]}  e6 {[%clk 0:02:56]} 3. Nc3 {[%clk 0:02:59]}  Nc6 {[%clk 0:02:55]} 4. Bb5 {[%clk 0:02:56]}  Nge7 {[%clk 0:02:52]} 5. O-O {[%clk 0:02:56]}  a6 {[%clk 0:02:49]} 6. Bxc6 {[%clk 0:02:55]}  Nxc6 {[%clk 0:02:50]} 7. d4 {[%clk 0:02:56]}  cxd4 {[%clk 0:02:50]} 8. Nxd4 {[%clk 0:02:56]}  d6 {[%clk 0:02:49]} 9. Nxc6 {[%clk 0:02:52]}  bxc6 {[%clk 0:02:49]} 10. Qg4 {[%clk 0:02:52]}  Qf6 {[%clk 0:02:32]} 11. f4 {[%clk 0:02:42]}  Be7 {[%clk 0:02:26]} 12. Qg3 {[%clk 0:02:32]}  d5 {[%clk 0:02:03]} 13. f5 {[%clk 0:02:28]}  O-O {[%clk 0:01:52]} 14. e5 {[%clk 0:02:05]}  Qh4 {[%clk 0:01:22]} 15. Qxh4 {[%clk 0:02:05]}  Bxh4 {[%clk 0:01:23]} 16. f6 {[%clk 0:02:05]}  gxf6 {[%clk 0:01:22]} 17. exf6 {[%clk 0:02:06]}  Kh8 {[%clk 0:01:23]} 18. g3 {[%clk 0:01:20]}  Rg8 {[%clk 0:01:23]} 19. Kh1 {[%clk 0:01:20]}  Bg5 {[%clk 0:01:23]} 20. Na4 {[%clk 0:01:21]}  e5 {[%clk 0:01:13]} 21. Nc5 {[%clk 0:01:21]}  a5 {[%clk 0:01:08]} 22. Bxg5 {[%clk 0:01:19]}  Rxg5 {[%clk 0:01:07]} 23. Rae1 {[%clk 0:01:20]}  Rb8 {[%clk 0:00:47]} 24. b3 {[%clk 0:01:13]}  e4 {[%clk 0:00:39]} 25. a4 {[%clk 0:01:03]}  Bg4 {[%clk 0:00:32]} 26. Rf4 {[%clk 0:01:02]}  h5 {[%clk 0:00:30]} 27. Kg1 {[%clk 0:01:02]}  Kh7 {[%clk 0:00:18]} 28. Kf2 {[%clk 0:01:02]}  Kg6 {[%clk 0:00:18]} 29. Ke3 {[%clk 0:01:01]}  Rb4 {[%clk 0:00:13]} 30. c3 {[%clk 0:00:59]}  Rb8 {[%clk 0:00:13]} 31. Kd4 {[%clk 0:00:58]}  Bc8 {[%clk 0:00:11]} 32. Rb1 {[%clk 0:00:53]}  Rf5 {[%clk 0:00:11]} 33. Rxf5 {[%clk 0:00:49]}  Bxf5 {[%clk 0:00:10]} 34. Rf1 {[%clk 0:00:47]}  Re8 {[%clk 0:00:10]} 35. b4 {[%clk 0:00:43]}  axb4 {[%clk 0:00:10]} 36. cxb4 {[%clk 0:00:44]}  Kxf6 {[%clk 0:00:09]} 37. a5 {[%clk 0:00:45]}  e3 {[%clk 0:00:07]} 38. a6 {[%clk 0:00:44]}  e2 {[%clk 0:00:07]} 39. Re1 {[%clk 0:00:44]}  Bg4 {[%clk 0:00:06]} 40. Nd3 {[%clk 0:00:39]}  Ra8 {[%clk 0:00:07]} 41. Nc5 {[%clk 0:00:39]}  Ke7 {[%clk 0:00:06]} 42. h3 {[%clk 0:00:39]}  Bxh3 {[%clk 0:00:05]} 43. Rxe2+ {[%clk 0:00:39]}  Kd6 {[%clk 0:00:06]} 44. Rf2 {[%clk 0:00:40]}  Be6 {[%clk 0:00:06]} 45. Rh2 {[%clk 0:00:36]}  Rb8 {[%clk 0:00:06]} 46. a7 {[%clk 0:00:31]}  Ra8 {[%clk 0:00:05]} 47. Ra2 {[%clk 0:00:30]}  Kc7 {[%clk 0:00:04]} 48. Ra3 {[%clk 0:00:29]}  Kd6 {[%clk 0:00:03]} 49. Ra6 {[%clk 0:00:28]}  Bc8 {[%clk 0:00:01]} 50. Ra3 {[%clk 0:00:27]}  Kc7 {[%clk 0:00:02]} 51. Ra5 {[%clk 0:00:19]}  Kb6 {[%clk 0:00:02]} 52. Na4+ {[%clk 0:00:20]}  Kb7 {[%clk 0:00:02]} 53. Nc5+ {[%clk 0:00:20]}  Kb6 {[%clk 0:00:03]} 54. Na4+ {[%clk 0:00:16]}  Kb7 {[%clk 0:00:03]} 55. b5 {[%clk 0:00:10]}  cxb5 {[%clk 0:00:02]} 56. Rxb5+ {[%clk 0:00:11]}  Kc7 {[%clk 0:00:03]} 57. Ra5 {[%clk 0:00:10]}  Kb7 {[%clk 0:00:03]} 58. Rxd5 {[%clk 0:00:05]}  Rxa7 {[%clk 0:00:03]} 59. Nc5+ {[%clk 0:00:05]}  Kc7 {[%clk 0:00:03]} 60. Rxh5 {[%clk 0:00:05]}  Ra3 {[%clk 0:00:03]} 61. Rh7 {[%clk 0:00:03]}  Rxg3 {[%clk 0:00:02]} 62. Rxf7+ {[%clk 0:00:04]}  Kd8 {[%clk 0:00:03]} 63. Ne4 {[%clk 0:00:04]}  Rg4 {[%clk 0:00:02]} 64. Ke5 {[%clk 0:00:02]}  Bd7 {[%clk 0:00:02]} 65. Rf8+ {[%clk 0:00:02]}  Ke7 {[%clk 0:00:02]} 66. Rf2 {[%clk 0:00:03]}  Rg7 {[%clk 0:00:02]} 67. Nf6 {[%clk 0:00:02]}  Rf7 {[%clk 0:00:02]} 68. Nd5+ {[%clk 0:00:02]}  Ke8 {[%clk 0:00:02]} 69. Rb2 {[%clk 0:00:03]}  Rg7 {[%clk 0:00:03]} 70. Rb8+ {[%clk 0:00:03]}  Kf7 {[%clk 0:00:03]} 71. Rb7 {[%clk 0:00:04]}  Ke8 {[%clk 0:00:03]} 72. Kd6 {[%clk 0:00:04]}  Rg6+ {[%clk 0:00:03]} 73. Kc5 {[%clk 0:00:04]}  Rc6+ {[%clk 0:00:03]} 74. Kd4 {[%clk 0:00:05]}  Be6 {[%clk 0:00:04]} 75. Nf6+ {[%clk 0:00:04]}  Kd8 {[%clk 0:00:04]} 76. Ke5 {[%clk 0:00:05]}  Bc8 {[%clk 0:00:03]} 77. Rf7 {[%clk 0:00:05]}  Re6+ {[%clk 0:00:03]} 78. Kd5 {[%clk 0:00:06]}  Re7 {[%clk 0:00:03]} 79. Rf8+ {[%clk 0:00:06]}  Kc7 {[%clk 0:00:03]} 80. Kc5 {[%clk 0:00:07]}  Bb7 {[%clk 0:00:04]} 81. Ne8+ {[%clk 0:00:06]}  Kd7 {[%clk 0:00:03]} 82. Nf6+ {[%clk 0:00:07]}  Kc7 {[%clk 0:00:04]} 83. Kd4 {[%clk 0:00:06]}  Kb6 {[%clk 0:00:02]} 84. Rd8 {[%clk 0:00:05]}  Ka7 {[%clk 0:00:03]} 85. Nd7 {[%clk 0:00:04]}  Re4+ {[%clk 0:00:03]} 86. Kc5 {[%clk 0:00:04]}  Re1 {[%clk 0:00:03]} 87. Ne5 {[%clk 0:00:05]}  Rc1+ {[%clk 0:00:03]} 88. Kd4 {[%clk 0:00:04]}  Rd1+ {[%clk 0:00:03]} 89. Nd3 {[%clk 0:00:05]}  Ba6 {[%clk 0:00:03]} 90. Kc3 {[%clk 0:00:05]}  Rxd3+ {[%clk 0:00:02]} 91. Rxd3 {[%clk 0:00:06]}  Bxd3 {[%clk 0:00:03]} 1/2-1/2


[Site "https://www.chess.com"]